Workbook

Sheet concession
B4: Name of Health Facility -------------Concession Hospital
B5: Item Description | C5: Quantity required | D5: Unit | E5: Unit Cost | F5: Total Cost | G5: VAT (if Any) | H5: Total Cost
E6: $ | F6: $
A7: Annexure 1 | B7: Preliminary | C7: 1 | D7: Sum | F7: =E7*C7 -> 0 | H7: =G7+F7 -> 0
B9: Brickwork
B11: Brick up window opening with one brick wall | C11: 3 | D11: m2 | F11: =C11*E11 -> 0 | H11: =G11+F11 -> 0
B12: brick reinforcement | C12: 8 | D12: m | F12: =C12*E12 -> 0 | H12: =G12+F12 -> 0
F13: 0 | H13: 0
F14: 0 | H14: 0
F15: 0 | H15: 0
F16: 0 | H16: 0
F17: 0 | H17: 0
F18: 0 | H18: 0
F22: =C22*E22 -> 0 | H22: =G22+F22 -> 0
F23: 0 | H23: 0
B24: Supply & fitting of lead lined operators booth | F24: 0 | H24: 0
A25: Annexure 2 | B25: lead lined sliding door 1500*2030mm | C25: 1 | D25: No. | F25: 0 | H25: 0
B26: lead lined white mellamine control booth 2030mm | C26: 1 | D26: No. | F26: 0 | H26: 0
B27: computer shelving | C27: 1 | D27: No. | F27: 0 | H27: 0
B28: iron mongery | F28: 0 | H28: 0
B29: sliding door lock | C29: 1 | D29: No. | F29: 0 | H29: 0
B30: radiation warning sign in three languages | C30: 3 | D30: No. | F30: 0 | H30: 0
F31: 0 | H31: 0
B32: plastering and wall linings | F32: 0 | H32: 0
B33: plastering on walls | C33: 3 | D33: m2 | F33: 0 | H33: 0
B34: ditto in narrow width | C34: 1 | D34: m2 | F34: 0 | H34: 0
F35: 0 | H35: 0
B36: ceramic wall tiles | C36: 1 | D36: m2 | F36: 0 | H36: 0
F37: 0 | H37: 0
B38: Pavings and floor covering | F38: 0 | H38: 0
B39: continuous vnyl sheet flooring | F39: 0 | H39: 0
B40: on floors | C40: 38 | D40: m2 | F40: 0 | H40: 0
B41: labour and material in turning tiles up covered fillet for a height of 100metres | C41: 30 | D41: m2 | F41: 0 | H41: 0
B42: alluminium division strip | C42: 4 | D42: m | F42: 0 | H42: 0
F43: 0 | H43: 0
B44: sheet metal work rainwater disposal plumbing and drainage | C44: 1 | D44: Item | F44: 0 | H44: 0
B45: allow for testing | C45: 1 | D45: Item | F45: 0 | H45: 0
F46: 0 | H46: 0
B47: Painting | F47: 0 | H47: 0
B48: on prepared walls | C48: 33 | D48: m2 | F48: 0 | H48: 0
B49: on prepared ceilings and cornices | C49: 35 | D49: m2 | F49: 0 | H49: 0
B50: touch up and clean paint work | C50: 1 | D50: Item | F50: 0 | H50: 0
F51: 0 | H51: 0
B52: Demolitions and alterations | C52: 1 | D52: Item | F52: 0 | H52: 0
F53: 0 | H53: 0
F54: 0 | H54: 0
F55: 0 | H55: 0
A56: Annexure 3 | B56: Supply & fitting of power distribution Cabinet | C56: 1 | D56: Item | F56: 0 | H56: 0
B57: · Enclosure DB | F57: 0 | H57: 0
B58: · MCB 100A Triple Pole | F58: 0 | H58: 0
B59: On/Off Switch | F59: 0 | H59: 0
B60: Indicator Lamps | F60: 0 | H60: 0
B61: 100A 3 pole breaker | F61: 0 | H61: 0
B62: · Contactor 100A Triple Pole | F62: 0 | H62: 0
B63: Electricals | F63: 0 | H63: 0
B64: Supply and lay 3 phase wiring to DB | F64: 0 | H64: 0
B65: 25mm 4 Core swa cable 100m | C65: 100 | D65: m | F65: 0 | H65: 0
B66: 25 sbcc | C66: 100 | D66: m | F66: 0 | H66: 0
B67: 25sqmm SBCC Separate earth | C67: 100 | D67: m | F67: 0 | H67: 0
F68: 0 | H68: 0
B69: 2.5sqmm single core conductor (cafca or similar approved type) Red | C69: 100 | D69: m | F69: 0 | H69: 0
B70: 2.5sqmm single core conductor (cafca or similar approved type) Earthwire | C70: 100 | D70: m | F70: 0 | H70: 0
B71: 2.5sqmm single core conductor (cafca or similar approved type) Black | C71: 100 | D71: m | F71: 0 | H71: 0
B72: MCBs & Isolators | F72: 0 | H72: 0
B73: 100A Triple pole MCB | C73: 1 | D73: No. | F73: 0 | H73: 0
B74: 20A Single pole MCB | C74: 1 | D74: No. | F74: 0 | H74: 0
B75: 10A Single pole MCB | C75: 2 | D75: No. | F75: 0 | H75: 0
B76: 10A Single pole isolator extractor fan | C76: 2 | D76: No. | F76: 0 | H76: 0
B77: 100A Triple pole isolator | C77: 1 | D77: No. | F77: 0 | H77: 0
B78: Trunking and Cable tray | F78: 0 | H78: 0
B79: 1 compartment 75mm *50mm skirting | C79: 2 | D79: No. | F79: 0 | H79: 0
B80: I compartment skirting trunking 90 | C80: 1 | D80: No. | F80: 0 | H80: 0
B81: I compartment skirting T piece | C81: 1 | D81: No. | F81: 0 | H81: 0
B82: I compartment trunking end cap | C82: 3 | D82: No. | F82: 0 | H82: 0
B83: 50mm cable tray | C83: 4 | D83: No. | F83: 0 | H83: 0
B84: 50mm cable tray mounting space bars | C84: 10 | D84: No. | F84: 0 | H84: 0
B85: 50mm cable tray 90 degree bend | C85: 2 | D85: No. | F85: 0 | H85: 0
B86: 50mm cable tray T piece | C86: 1 | D86: No. | F86: 0 | H86: 0
B87: 50*50 trunking | C87: 4 | D87: No. | F87: 0 | H87: 0
B88: Socket outlets | F88: 0 | H88: 0
B89: Double socket outlet | C89: 3 | D89: No. | F89: 0 | H89: 0
B90: double 36w 1200mm fluo fitting | C90: 3 | D90: No. | F90: 0 | H90: 0
B91: double 18w 600m fluo c/w tubes | C91: 1 | D91: No. | F91: 0 | H91: 0
B92: 5A gang 1 way switch | C92: 1 | D92: No. | F92: 0 | H92: 0
B93: Accessories | F93: 0 | H93: 0
B94: SF6 Fisher plugs | C94: 2 | D94: No. | F94: 0 | H94: 0
B95: 100mm cable ties | C95: 30 | D95: No. | F95: 0 | H95: 0
B96: 4mm*35mm woodscrews | C96: 1 | D96: No. | F96: 0 | H96: 0
B97: BE Saddles 20mm | C97: 50 | D97: No. | F97: 0 | H97: 0
B98: 20mm pvc conduits | C98: 12 | D98: Lengths | F98: 0 | H98: 0
B99: 20mm pvc coupling | C99: 50 | D99: No. | F99: 0 | H99: 0
B100: 20mm pvc nipples | C100: 50 | D100: No. | F100: 0 | H100: 0
B101: 20mm pvc adaptor | C101: 1 | D101: No. | F101: 0 | H101: 0
B102: verandah bolts 10mm*50mm | C102: 10 | D102: No. | F102: 0 | H102: 0
B103: expansion bolts 10mm*50mm | C103: 4 | D103: No. | F103: 0 | H103: 0
B104: size gland shroud | C104: 8 | D104: No. | F104: 0 | H104: 0
F105: 0 | H105: 0
B106: Additional | F106: 0 | H106: 0
B107: 16mm 4 core swa cable | C107: 30 | D107: m | F107: =C107*E107 -> 0 | H107: =G107+F107 -> 0
B108: 16mm earthwire | C108: 30 | D108: m | F108: 0 | H108: 0
B109: PVC grey trunking | C109: 5 | D109: m | F109: 0 | H109: 0
B110: M8*65mm Rawl bolts*20 | C110: 20 | D110: No. | F110: 0 | H110: 0
B111: extractor fan | C111: 2 | D111: No. | F111: 0 | H111: 0
F112: 0 | H112: 0
F117: 0 | H117: 0
B118: Total | F118: =SUM(F55:F117) -> 0 | G118: =SUM(G55:G117) -> 0 | H118: =SUM(H7:H117) -> 0
B120: contigency 5% | H120: =H118*0.05 -> 0
B121: Price on bill of quantities.
B122: Electricals | C122: 14373
B123: Bill 1. preliminary and generally | C123: 4094.2
B124: Bill 2. brickwork | C124: 166.46
B125: Bill 3. Joinery and iron mongery | C125: 11746.83
B126: Bill 4. Metal work | C126: 96.84
B127: Bill 5. Paving and floor covering | C127: 5271.8
B128: Bill 6. plastering and wall lining | C128: 385
B129: Bill 7. painting | C129: 1118
B130: Bill 8. Demoliation and alteration | C130: 1261.36
C131: =SUM(C122:C130) -> 38513.49
B132: contigency 10% | C132: =C131*0.1 -> 3851.349
C133: =SUM(C131:C132) -> 42364.839
B134: vat 15% | C134: =C133*0.15 -> 6354.72585
B135: Total | C135: =SUM(C133:C134) -> 48719.56485
F140: Expected profit
B141: Deinstallation | C141: 50 | E141: 50 | F141: =E141-C141 -> 0
B142: electricals | C142: =9149-985 -> 8164 | E142: =14373-985+150 -> 13538 | F142: =E142-C142 -> 5374
B143: eletrician cost | C143: 900 | E143: 900 | F143: 0
B144: fitting booth | C144: =4200-985 -> 3215 | E144: =6253-985 -> 5268 | F144: 2053
B145: lead double doors | C145: =3000-984 -> 2016 | E145: =4653.45-984 -> 3669.45 | F145: 1653.45
B146: computer shelf | C146: 546 | E146: =C146*1.5 -> 819 | F146: 273
B147: tiler | C147: 1245 | E147: 1867.5 | F147: 622.5
B148: tile and carpet | C148: 2797 | E148: 4195.5 | F148: 1398.5
B149: building material | C149: 2549 | E149: 3823.5 | F149: 1274.5
B150: builder | C150: 800 | E150: 1200 | F150: 400
B151: extractor fans | C151: 1610 | E151: 2415 | F151: 805
B152: Labour 7days @50/day | C152: 3220 | E152: 3220 | F152: 0
B153: accommodation $60*3 | C153: 1449 | E153: 1449 | F153: 0
B154: mileage 114*0.3 | C154: 43 | F154: -43
C155: =SUM(C142:C154) -> 28554 | E155: =SUM(E142:E154) -> 42364.95 | F155: 13810.95
E156: =E155-C133 -> 0.111
E159: =E156/3 -> 0.037
B162: Subtotal A | H162: =H118+H120 -> 0
B164: Vat 15% | H164: =H162*0.15 -> 0
B166: Grand Total | H166: =H162+H164 -> 0
